Cogmind - Beta 10.2 @@@ ROGUE MODE // 2021.12.11 @ 21:41:57 Player: Jezoensis Result: Escaped! Performance ------------- Evolutions (9) 4500 Regions Visited (26) 5200 Robots Destroyed (172) 860 Value Destroyed (7642) 7642 Prototype IDs (242) 4840 Alien Tech Used (2) 400 Bonus (8832) 8832 TOTAL SCORE: 32274 Bonus ------- High Alert Combat Kills 158 Follower Combat Kills 111 Entered Garrisons 200 Used RIF Installer 500 Aligned with FarCom 300 Met Data Miner 300 Used Data Conduit 3000 Met Zhirov 300 Pursued by Intercept 1000 Win 3000 Friendly Fire -37 Cogmind --------- Core Integrity 1326/1600 Matter 240/300 Energy 260/350 System Corruption 2% Temperature Cool (7) Movement Treading (165) Location To Epsilon Eridani Parts ------- > --- POWER (1) -------- Reinforced Quantum Reactor > --- PROPULSION (4) --- Improved Heavy Treads Armored Heavy Treads > --- UTILITY (14) ----- Experimental Heat Sink Advanced Cooling System Advanced Cooling System Large Storage Unit Large Storage Unit Large Storage Unit Enhanced Optical Array Experimental Terrain Scanner Advanced Terrain Scan Processor Advanced Salvage Targeting Computer Experimental Targeting Computer Advanced Target Analyzer Improved Armor Integrity Analyzer Improved Transmission Jammer > --- WEAPON (7) ------- Railgun Railgun Multirail Multirail Multirail Multirail Multirail > --- INVENTORY (22) --- Particle Reactor Reinforced Quantum Reactor Improved Heavy Treads Improved Heavy Treads Armored Heavy Treads Experimental Matter Compressor (394) Transmission Jammer Improved Transmission Jammer Improved Dynamic Insulation System Long-range Tractor Beam Enhanced Nova Cannon Enhanced Nova Cannon Heavy Machine Gun Heavy Machine Gun KE Penetrator KE Penetrator KE Penetrator KE Penetrator Peak State ------------ > --- POWER ------------ Particle Reactor > --- PROPULSION ------- Improved Heavy Treads Armored Heavy Treads > --- UTILITY ---------- Experimental Heat Sink Advanced Cooling System Advanced Cooling System Large Storage Unit Large Storage Unit Large Storage Unit Enhanced Optical Array Experimental Terrain Scanner Advanced Terrain Scan Processor Advanced Salvage Targeting Computer Experimental Targeting Computer Advanced Target Analyzer Improved Armor Integrity Analyzer Improved Transmission Jammer > --- WEAPON ----------- Enhanced Nova Cannon Railgun Multirail Multirail Multirail Multirail Multirail > --- INVENTORY -------- Reinforced Quantum Reactor Reinforced Quantum Reactor Improved Heavy Treads Improved Heavy Treads Armored Heavy Treads Experimental Matter Compressor Transmission Jammer Improved Transmission Jammer Improved Dynamic Insulation System Long-range Tractor Beam Enhanced Nova Cannon Heavy Machine Gun Heavy Machine Gun KE Penetrator KE Penetrator KE Penetrator KE Penetrator Railgun [Rating: 197] Favorites ----------- Power Improved Deuterium Engine Engine Improved Deuterium Engine Power Core Fission Core Reactor Heavy Antimatter Reactor Propulsion Advanced Treads Treads Advanced Treads Leg Enhanced Armored Leg Utility Large Storage Unit Device Improved Terrain Scanner Storage Large Storage Unit Processor Enhanced Optical Array Hackware System Shield Protection Hardened Medium Armor Plating Weapon Flak Gun Energy Gun Tesla Rifle Energy Cannon Neutron Cannon Ballistic Gun Flak Gun Launcher Advanced EMP Blaster Special Weapon Mining Laser Slashing Weapon Axe Build | -11 -10 -10 -10 -9 -8 -8 -8 -7 -7 -7 -6 -6 -6 -6 -5 -5 -5 -5 -5 -4 -4 -4 -4 -3 -2 -1 ------- Run | Scr Mat Min Exi Min Mat Gar Mat Fac Low Low Fac Low Low Dat Pro Fac Upp Upp Zhi Pro Fac Upp Upp Res Res Acc Slots Evolved 18 | . . . . . 4 . . 2 . . 2 . . . . 2 . . . . 2 . . 2 2 2 Power . | . . . . . . . . . . . . . . . . . . . . . . . . . . . Propulsion 2 | . . . . . 1 . . . . . 1 . . . . . . . . . . . . . . . Utility 12 | . . . . . 2 . . 2 . . 1 . . . . 1 . . . . 2 . . 1 2 1 Weapon 4 | . . . . . 1 . . . . . . . . . . 1 . . . . . . . 1 . 1 Parts Attached 473 | 7 12 6 . 1 19 16 31 48 13 11 23 10 10 9 17 37 6 11 3 14 52 7 3 21 17 69 Power 18 | 1 2 . . . 1 2 1 3 . . 2 . . . . 1 . . 1 . . . . 1 1 2 Engine 10 | 1 1 . . . 1 1 1 3 . . 2 . . . . . . . . . . . . . . . Core 3 | . 1 . . . . 1 . . . . . . . . . 1 . . . . . . . . . . Reactor 5 | . . . . . . . . . . . . . . . . . . . 1 . . . . 1 1 2 Propulsion 43 | 2 . . . . 2 3 5 6 . . 2 2 . . 1 6 . . . 2 . 1 1 5 1 4 Treads 42 | 2 . . . . 2 3 5 6 . . 2 2 . . 1 5 . . . 2 . 1 1 5 1 4 Leg 1 | . . . . . . . . . . . . . . . . 1 . . . . . . . . . . Wheel . | . . . . . . . . . . . . . . . . . . . . . . . . . . . Hover . | . . . . . . . . . . . . . . . . . . . . . . . . . . . Flight . | . . . . . . . . . . . . . . . . . . . . . . . . . . . Utility 209 | 2 5 2 . 1 9 6 5 25 9 9 10 4 4 6 9 18 2 5 1 5 22 2 2 6 9 31 Device 163 | 1 2 2 . . 6 6 5 21 9 6 10 3 2 4 5 16 2 5 1 3 15 2 2 4 7 24 Storage 9 | 1 1 . . 1 2 . . . . 1 . . . 1 . . . . . . . . . 1 . 1 Processor 10 | . . . . . 1 . . 2 . . . . . . . 1 . . . . 3 . . . . 3 Hackware 4 | . . . . . . . . 2 . . . . . . . . . . . . 2 . . . . . Protection 23 | . 2 . . . . . . . . 2 . 1 2 1 4 1 . . . 2 2 . . 1 2 3 Artifact . | . . . . . . . . . . . . . . . . . . . . . . . . . . . Weapon 203 | 2 5 4 . . 7 5 20 14 4 2 9 4 6 3 7 12 4 6 1 7 30 4 . 9 6 32 Energy Gun 66 | . 2 . . . 2 2 8 7 1 . 4 1 1 . 1 5 2 3 1 2 11 1 . 3 4 5 Energy Cannon 23 | . . . . . . . . . . . . . . . . . 2 2 . 3 5 1 . 1 1 8 Ballistic Gun 78 | 2 1 4 . . 4 3 5 2 1 1 1 1 3 . 5 5 . . . . 13 2 . 5 1 19 Ballistic Cannon . | . . . . . . . . . . . . . . . . . . . . . . . . . . . Launcher 10 | . . . . . . . 1 . 1 . . 1 . 3 . . . 1 . 2 1 . . . . . Special Weapon 5 | . 2 . . . 1 . 2 . . . . . . . . . . . . . . . . . . . Impact Weapon . | . . . . . . . . . . . . . . . . . . . . . . . . . . . Slashing Weapon 21 | . . . . . . . 4 5 1 1 4 1 2 . 1 2 . . . . . . . . . . Piercing Weapon . | . . . . . . . . . . . . . . . . . . . . . . . . . . . Special Melee Weapon . | . . . . . . . . . . . . . . . . . . . . . . . . . . . Unidentified Prototypes 6 | . . . . . 1 . 2 . 1 . . . . . . . . . 1 . . . . . . 1 Parts Lost 39 | . 1 . . . . . . . . . . . 2 1 4 6 1 2 . 1 2 . . 8 . 11 Power 1 | . . . . . . . . . . . . . . . . . . . . . . . . 1 . . Propulsion 8 | . . . . . . . . . . . . . . . 1 4 . . . 1 . . . 2 . . Utility 6 | . . . . . . . . . . . . . . . 2 1 . . . . . . . . . 3 Weapon 24 | . 1 . . . . . . . . . . . 2 1 1 1 1 2 . . 2 . . 5 . 8 Highest Loss Streak 8 | . 1 . . . . . . . . . . . 2 1 4 5 1 2 . 1 1 . . 8 . 7 Average Slot Usage (%) 98 | . 100 100 100 100 98 100 100 100 98 100 99 99 99 96 99 98 99 99 94 99 99 100 100 97 90 91 Engine 4 | . 11 14 14 14 9 4 9 7 7 7 5 6 6 6 6 2 . . . . . . . . . . Reactor 1 | . . . . . . . . . . . . . . . . . . . 2 5 5 5 5 4 4 3 Treads 22 | . 28 28 28 28 26 27 27 23 21 21 25 24 25 25 24 21 22 22 22 21 20 20 20 16 8 7 Device 11 | . 12 14 14 10 13 9 9 10 14 12 12 11 11 11 10 13 11 11 8 10 13 10 10 12 12 15 Storage 15 | . 14 14 14 17 18 18 18 15 14 14 18 18 18 15 18 16 16 16 16 16 15 15 15 13 16 14 Processor 12 | . . . . . 3 9 9 14 14 14 12 12 12 12 12 11 16 16 16 16 16 25 25 22 16 19 Energy Gun 4 | . 5 . . . 4 7 6 2 4 1 1 . . 2 2 7 10 13 13 11 4 1 . 7 8 5 Ballistic Gun 17 | . 18 28 28 28 22 17 17 15 14 20 18 21 18 9 16 16 16 12 11 11 18 22 20 16 14 18 Slashing Weapon 1 | . . . . . . . 1 4 6 6 4 2 4 . 2 2 . . . . . . . . . . Naked Turns . | . . . . . . . . . . . . . . . . . . . . . . . . . . . Heaviest Build 145 | 13 17 17 17 24 50 49 51 57 63 74 75 82 82 86 91 87 89 89 92 102 99 99 101 120 142 145 Greatest Support 150 | 40 40 40 40 40 60 60 66 66 64 64 92 92 86 86 92 101 101 101 101 101 101 103 103 140 145 150 Greatest Overweight (x) 1 | . . . . . . . . . . 1 . . . . 1 1 . . . 1 . . . 1 1 . Average Overweight (x) . | . . . . . . . . . . . . . . . . . . . . . . . . . . . Largest Inventory Capacity 28 | 6 8 8 8 12 20 16 16 16 16 22 22 22 22 22 22 22 22 22 22 22 22 22 22 28 28 28 Average Capacity 19 | 5 7 8 8 9 15 16 16 16 16 16 22 22 22 19 22 22 22 22 22 22 22 22 22 23 28 27 Most Carried 27 | 4 8 8 8 9 16 16 16 16 16 18 22 22 22 21 22 22 21 21 22 22 22 22 22 24 27 27 Average Carried 17 | 2 6 8 7 8 9 15 15 15 15 15 20 21 21 18 20 20 20 19 20 21 21 21 21 19 23 24 Final Capacity 28 | 6 8 8 8 12 16 16 16 16 16 22 22 22 22 22 22 22 22 22 22 22 22 22 22 28 28 22 Final Carried 27 | 4 8 8 8 9 16 16 16 16 15 18 22 21 21 21 19 21 21 19 20 22 21 22 22 24 27 21 Class Distribution -------------------- 14% | Hauler-Assassin 14% | Hauler-Skirmisher 12% | Mutant 12% | Assassin 9% | Scavenger-Skirmisher 9% | Hauler-Mutant 8% | Scavenger-Mutant 8% | Skirmisher 7% | Scavenger-Executioner Dominant Class ---------------- Mutant | -10/Materials Mutant | -10/Mines Mutant | -10/Exiles Skirmisher | -9/Mines Skirmisher | -8/Materials Scavenger-Skirmisher | -8/Garrison Scavenger-Skirmisher | -8/Materials Assassin | -7/Factory Assassin | -7/Lower Caves Assassin | -7/Lower Caves Hauler-Assassin | -6/Factory Hauler-Skirmisher | -6/Lower Caves Hauler-Assassin | -6/Lower Caves Tank | -6/Data Miner Hauler-Assassin | -5/Proximity Caves Hauler-Assassin | -5/Factory Hauler-Skirmisher | -5/Upper Caves Hauler-Skirmisher | -5/Upper Caves Hauler-Mutant | -5/Zhirov Hauler-Mutant | -4/Proximity Caves Scavenger-Mutant | -4/Factory Scavenger-Skirmisher | -4/Upper Caves Scavenger-Mutant | -4/Upper Caves Scavenger-Executioner | -3/Research Scavenger-Executioner | -2/Research Scavenger-Executioner | -1/Access Resources | -11 -10 -10 -10 -9 -8 -8 -8 -7 -7 -7 -6 -6 -6 -6 -5 -5 -5 -5 -5 -4 -4 -4 -4 -3 -2 -1 ----------- Run | Scr Mat Min Exi Min Mat Gar Mat Fac Low Low Fac Low Low Dat Pro Fac Upp Upp Zhi Pro Fac Upp Upp Res Res Acc Matter Collected 9880 | 306 238 93 . 23 331 207 401 614 417 248 404 174 237 268 338 866 173 256 . 245 848 116 40 235 1002 1800 Remotely 3304 | . . . . . . . . 138 121 . 102 . . . 137 410 . 152 . 69 518 . . . 274 1383 Salvage Created 11490 | 152 453 99 . 11 383 261 492 652 297 201 444 152 237 213 240 1117 326 242 . 583 1375 60 . 235 1091 2174 Parts 541 | 12 31 2 . 1 22 21 28 34 6 7 15 2 20 3 13 37 5 8 . 15 46 4 . 19 53 137 Haulers Intercepted 10 | . 2 . . . 2 . 2 1 . . 1 . . . . . . . . . 2 . . . . . Recyclers Shooed 4 | 1 . . . . . . . 1 . . . . . . . . . . . . . . . . 2 . Parts Field Recycled . | . . . . . . . . . . . . . . . . . . . . . . . . . . . Retrieved Matter . | . . . . . . . . . . . . . . . . . . . . . . . . . . . Parts Self-Destructed 58 | . . . . . . . . . 6 1 . 2 18 . 8 . 3 5 . 3 . . 12 . . . Prevented 26 | . . . . . . . . . 2 1 . . . . 3 . 1 2 . 13 . 4 . . . . Kills | -11 -10 -10 -10 -9 -8 -8 -8 -7 -7 -7 -6 -6 -6 -6 -5 -5 -5 -5 -5 -4 -4 -4 -4 -3 -2 -1 ------- Run | Scr Mat Min Exi Min Mat Gar Mat Fac Low Low Fac Low Low Dat Pro Fac Upp Upp Zhi Pro Fac Upp Upp Res Res Acc Combat Hostiles Destroyed 112 | . 7 2 . . 4 6 3 7 2 1 3 2 7 4 4 10 3 4 . 5 10 1 . 2 7 18 Guns 97 | . 7 2 . . 4 6 3 6 1 1 3 2 7 . 3 10 3 4 . . 7 1 . 2 7 18 AOE 7 | . . . . . . . . . 1 . . . . 4 1 . . . . . 1 . . . . . Classes Destroyed 16 | 2 3 . . . 3 1 . 2 1 1 . 1 . . . . 1 . . . . . . 1 . . Worker 8 | . . . . . 1 . . 1 . . . . . . . 1 . . . . 1 . . . 3 1 Builder 12 | . . . . . 1 . 1 . . . . . . . . 1 . . . . . . . . 2 7 Tunneler 6 | 3 . . . 1 2 . . . . . . . . . . . . . . . . . . . . . Hauler 10 | . 2 . . . 2 . 2 1 . . 1 . . . . . . . . . 2 . . . . . Recycler 13 | 1 . . . . . . 2 2 . . 1 . . . . 2 . . . . 3 . . . 2 . Watcher 11 | . 2 . . . . . 2 1 . . 1 . . . . 4 . . . . . . . . 1 . Swarmer 10 | . . . . . . 2 . . . . . . 7 . . 1 . . . . . . . . . . Grunt 38 | . 7 2 . . 3 2 2 1 2 . 1 . . . . 3 2 4 . 3 . . . . . 6 Brawler 2 | . . . . . . . . . . . . . . . . . 1 . . . . . . . . 1 Duelist 1 | . . . . . . . . 1 . . . . . . . . . . . . . . . . . . Sentry 18 | . . . . . 1 2 1 2 . . 2 . . . . 2 . . . . 2 . . 1 5 . Hunter 14 | . . . . . . . . . . 1 . . . . 2 2 . . . 2 4 . . . . 3 Programmer 17 | . . . . . . . . 3 . . . 1 . . 2 2 . . . . 4 1 . . 2 2 Behemoth 4 | . . . . . . . . . . . . . . . . . . . . . . . . 1 . 3 Enhanced Grunt 4 | . . . . . . . . . . . . . . 4 . . . . . . . . . . . . Tracker 1 | . . . . . . . . . . . . . . . . . . . . . . . . . . 1 Combat Programmer 2 | . . . . . . . . . . . . . . . . . . . . . . . . . . 2 Decomposer 1 | . . . . . . . . . 1 . . . . . . . . . . . . . . . . . Packrat 1 | . . . . . . . . . . . . 1 . . . . . . . . . . . . . . Samaritan 7 | . . . . . . . . . 2 3 . . . . . . 2 . . . . . . . . . Thief 1 | . . . . . . . . . . . . 1 . . . . . . . . . . . . . . Best Kill Streak 9 | 2 6 1 . 1 2 2 2 2 1 1 2 1 4 4 2 8 3 2 . 3 5 1 . 1 4 9 Combat Bots Only 7 | . 5 1 . . 2 2 2 1 1 1 1 1 4 4 2 3 3 2 . 3 4 1 . 1 2 7 Max Kills in Single Turn 3 | 1 1 1 . 1 1 1 2 1 1 1 1 1 1 2 1 2 1 1 . 1 2 1 . 1 3 2 Gunslinging 1 | . . . . . . . . . . . . . . . . . . . . . . . . . . 1 Exploded 2 | . . . . . . . . . 1 . . . . 2 1 . . . . . 1 . . . . . Melee . | . . . . . . . . . . . . . . . . . . . . . . . . . . . Uniques/NPCs Destroyed . | . . . . . . . . . . . . . . . . . . . . . . . . . . . Combat | -11 -10 -10 -10 -9 -8 -8 -8 -7 -7 -7 -6 -6 -6 -6 -5 -5 -5 -5 -5 -4 -4 -4 -4 -3 -2 -1 -------- Run | Scr Mat Min Exi Min Mat Gar Mat Fac Low Low Fac Low Low Dat Pro Fac Upp Upp Zhi Pro Fac Upp Upp Res Res Acc Damage Taken 12654 | . 395 165 . . 126 271 132 457 30 121 328 68 407 219 745 1033 37 301 . 277 815 103 287 1124 264 4949 Core 965 | . 93 . . . . 54 19 51 . . 71 . 14 . . 153 . 19 . 16 104 . 37 36 24 274 Absorbed by Shields 91 | . . 51 . . 40 . . . . . . . . . . . . . . . . . . . . . Reduced by Siege Mode 413 | . . . . . . . . . . . . . . . . . . . . . . . . . 14 399 Core Remaining (%) 87 | 100 . . . 62 . . 86 . . 92 . . . . 90 . . . . 81 . . 87 97 98 82 Volleys Fired 435 | 9 44 14 . 5 22 20 19 37 13 3 10 6 15 5 7 27 13 13 . 20 35 4 . 11 18 65 Largest 7 | 2 2 2 . 2 3 3 3 3 3 4 4 4 4 3 4 5 5 5 . 3 5 5 . 6 6 7 Hottest 418 | 40 100 40 . 40 100 113 113 106 119 134 154 134 107 114 147 235 235 262 . 163 255 161 . 290 385 418 Shots Fired 1450 | 18 80 28 . 10 62 51 45 110 27 12 40 18 49 15 27 118 44 53 . 30 135 12 . 50 91 325 Gun 1350 | 18 72 28 . 10 60 51 39 110 26 12 40 16 49 3 25 118 39 48 . 14 125 10 . 47 89 301 Cannon 54 | . . . . . . . . . . . . . . . . . 5 2 . 6 10 2 . 3 2 24 Launcher 30 | . . . . . . . . . 1 . . 2 . 12 2 . . 3 . 10 . . . . . . Special 16 | . 8 . . . 2 . 6 . . . . . . . . . . . . . . . . . . . Kinetic 984 | 18 55 28 . 10 43 35 22 74 13 9 30 14 48 3 22 87 24 31 . . 88 10 . 33 56 231 Thermal 266 | . 25 . . . 16 . 6 23 . . 5 . . . . 15 13 13 . 6 10 2 . 3 35 94 Explosive 8 | . . . . . . . . . . . . . . 8 . . . . . . . . . . . . Electromagnetic 192 | . . . . . 3 16 17 13 14 3 5 4 1 4 5 16 7 9 . 24 37 . . 14 . . Robot Hit Streak 34 | 5 14 12 . 4 11 12 14 13 11 10 10 5 9 6 10 19 24 8 . 9 17 11 . 24 20 34 Robot Miss Streak 7 | 1 4 1 . 3 2 3 2 3 3 3 3 3 7 1 2 2 2 3 . 1 4 1 . 1 1 2 Penetration Max 1 | . . . . . . . . . . . . . . . . 1 . . . . 1 . . . 1 1 Secondary Targets 14 | . . . . . 1 1 . . . . . 1 . . 1 1 1 1 . . 2 . . . . 5 Max Gunslinging Chain 2 | . . . . . 1 1 . . . . . 1 . . 1 1 1 1 . . 1 . . . . 2 Shots Hit Robots 1007 | 11 53 23 . 5 39 31 29 86 22 13 29 9 39 7 17 88 25 38 . 17 80 6 . 39 63 238 Core Hits 464 | 7 21 7 . 2 18 13 19 28 10 9 25 7 19 19 11 42 14 16 . 10 33 2 . 9 30 93 Critical Hits 32 | 1 2 . . . . . 1 . . . . . . . . 5 1 . . . 2 . . . 3 17 Critical Kills 6 | . 1 . . . . . . . . . . . . . . 2 . . . . 1 . . . 1 1 Critical Parts Destroyed 17 | 1 1 . . . . . 1 . . . . . . . . 3 1 . . . 1 . . . 2 7 Melee Attacks 58 | . . . . . . . 3 12 5 5 8 2 3 . 3 17 . . . . . . . . . . Impact . | . . . . . . . . . . . . . . . . . . . . . . . . . . . Slashing 58 | . . . . . . . 3 12 5 5 8 2 3 . 3 17 . . . . . . . . . . Piercing . | . . . . . . . . . . . . . . . . . . . . . . . . . . . Sneak Attacks 9 | . . . . . . . . 1 1 4 1 . . . . 2 . . . . . . . . . . Combat Hostiles . | . . . . . . . . . . . . . . . . . . . . . . . . . . . Follow-up Attacks . | . . . . . . . . . . . . . . . . . . . . . . . . . . . Damage Inflicted 25461 | 116 553 213 . 40 522 414 611 1532 501 554 746 259 255 1155 526 2421 702 752 . 781 2197 220 . 860 2204 7327 Guns 21481 | 116 553 213 . 40 522 414 479 1445 319 143 581 147 255 25 408 2076 665 593 . 214 1965 220 . 860 2113 7115 Cannons . | . . . . . . . . . . . . . . . . . . . . . . . . . . . Explosions 2864 | . . . . . . . 132 . 73 . 72 112 . 1130 118 64 37 159 . 567 201 . . . . 199 Melee 978 | . . . . . . . . 84 109 411 93 . . . . 281 . . . . . . . . . . Ramming 138 | . . . . . . . . 3 . . . . . . . . . . . . 31 . . . 91 13 Kinetic 14364 | 116 366 213 . 40 326 195 203 847 123 100 407 131 235 25 363 1342 328 372 . . 1405 220 . 683 1136 5188 Thermal 4665 | . 187 . . . 162 . 132 397 . . 139 . . . . 387 154 203 . . . . . . 977 1927 Explosive 1374 | . . . . . . . . . . . . . . 974 . . . . . . 201 . . . . 199 Electromagnetic 3942 | . . . . . 34 219 276 201 269 43 107 128 20 156 163 411 220 177 . 781 560 . . 177 . . Impact . | . . . . . . . . . . . . . . . . . . . . . . . . . . . Slashing 978 | . . . . . . . . 84 109 411 93 . . . . 281 . . . . . . . . . . Piercing . | . . . . . . . . . . . . . . . . . . . . . . . . . . . Highest Corruption 3 | . . . . . . . . . 1 . . . . . 3 1 . . . . . . 1 . 2 3 Average Corruption 1 | . . . . . . . . . 1 . . . . . 2 1 . . . . . . 1 . 2 1 Corruption Purged 3 | . . . . . . . . . 1 . . . . . . 1 . . . . . . . . . 1 Effects 14 | . . . . . . . . . . . . . . . 6 2 . . . . . . 1 . 1 4 Message Errors 3 | . . . . . . . . . . . . . . . . 1 . . . . . . 1 . 1 . Matter Fused 3 | . . . . . . . . . . . . . . . 3 . . . . . . . . . . . Heat Flow Errors 1 | . . . . . . . . . . . . . . . . . . . . . . . . . . 1 Energy Discharges 3 | . . . . . . . . . . . . . . . 2 . . . . . . . . . . 1 Data Loss (minor) 1 | . . . . . . . . . . . . . . . 1 . . . . . . . . . . . Targeting Errors 1 | . . . . . . . . . . . . . . . . . . . . . . . . . . 1 Weapon Failures 2 | . . . . . . . . . . . . . . . . 1 . . . . . . . . . 1 Overload Shots . | . . . . . . . . . . . . . . . . . . . . . . . . . . . Overflow Damage 318 | . . . . . . . . . . 71 25 . . 27 . 138 . . . 27 7 . . . 13 10 Projectiles . | . . . . . . . . . . . . . . . . . . . . . . . . . . . Explosions 96 | . . . . . . . . . . . 25 . . 27 . . . . . 27 7 . . . . 10 Melee 222 | . . . . . . . . . . 71 . . . . . 138 . . . . . . . . 13 . Knockbacks 1 | . . . . . . . . . . . . . . . . . . . . . . . . . 1 . Impact 1 | . . . . . . . . . . . . . . . . . . . . . . . . . 1 . Kinetic . | . . . . . . . . . . . . . . . . . . . . . . . . . . . Secondary . | . . . . . . . . . . . . . . . . . . . . . . . . . . . Self-Inflicted Damage 162 | . . . . . . . 38 . 30 . 56 . . . . . . 38 . . . . . . . . Shots 6 | . . . . . . . 1 . 1 . 2 . . . . . . 2 . . . . . . . . Rammed 11 | . 1 . . . . . . 2 . . . . . . . . . . . . 3 . . . 4 1 Targets Rammed 12 | . 1 . . . . . 1 2 . . . . . . . . . . . . 3 . . . 4 1 Kicked . | . . . . . . . . . . . . . . . . . . . . . . . . . . . Crushed 1 | . . . . . . . 1 . . . . . . . . . . . . . . . . . . . Highest Temperature 364 | . 184 12 . . 72 8 42 72 72 30 96 96 77 94 175 290 296 228 . 108 364 101 . 20 136 309 Average Temperature 61 | . 47 6 . . 24 4 17 25 30 15 25 40 33 46 70 112 118 81 . 31 88 41 . 7 41 118 Received Heat Transfer 1317 | . 222 87 . . 27 117 45 114 . . 111 . . 30 . 81 18 126 . 42 27 . . 108 27 135 Effects 1 | . . . . . . . . . . . . . . . . . . . . . 1 . . . . . Interference 1 | . . . . . . . . . . . . . . . . . . . . . 1 . . . . . Siege Activations 9 | . . . . . . . . . . . . . . . . . . . . . . . . . 1 8 Total Turns 168 | . . . . . . . . . . . . . . . . . . . . . . . . . 11 157 Longest Duration 36 | . . . . . . . . . . . . . . . . . . . . . . . . . 11 36 Robots Corrupted 10 | . . . . . . . . 1 1 . . . . . . . . . . 6 2 . . . . . Combat Hostiles 10 | . . . . . . . . 1 1 . . . . . . . . . . 6 2 . . . . . Parts Fried 35 | . . . . . . . 2 3 5 . . 1 . . 2 3 2 . . 6 10 . . 1 . . Impact Corruptions 1 | . . . . . . . . . . . . . . . . . . . . . . . . . 1 . Robots Melted . | . . . . . . . . . . . . . . . . . . . . . . . . . . . Combat Hostiles . | . . . . . . . . . . . . . . . . . . . . . . . . . . . Parts Melted 16 | . 1 . . . 2 . 1 1 . . . . . . . . . . . . . . . . 8 3 Heat Transferred 5996 | . 555 . . . 407 . 100 703 . . 250 . . . . 444 222 272 . . . . . . 1073 1970 Parts Sabotaged . | . . . . . . . . . . . . . . . . . . . . . . . . . . . Parts Stolen 1 | . . . . . . . . . . . . 1 . . . . . . . . . . . . . . Parts Stripped . | . . . . . . . . . . . . . . . . . . . . . . . . . . . Power Chain Reactions 8 | . . . . . . . 2 . 1 . 2 . . . . 1 1 1 . . . . . . . . Missiles Intercepted . | . . . . . . . . . . . . . . . . . . . . . . . . . . . Alert | -11 -10 -10 -10 -9 -8 -8 -8 -7 -7 -7 -6 -6 -6 -6 -5 -5 -5 -5 -5 -4 -4 -4 -4 -3 -2 -1 ------- Run | Scr Mat Min Exi Min Mat Gar Mat Fac Low Low Fac Low Low Dat Pro Fac Upp Upp Zhi Pro Fac Upp Upp Res Res Acc Peak Influence 493 | 20 219 66 . 5 125 207 185 180 . . 124 . . . . 250 . . . . 439 . . 190 382 493 Initial 144 | . 13 16 . . 1 42 100 57 . . 30 . . . . . . . . . 78 . . 117 87 144 Average 115 | 9 62 45 . . 32 120 113 58 . . 52 . . . . 115 . . . . 161 . . 152 243 277 Maximum Alert Level 2 | . 1 . . . . 1 . . . . . . . . . 1 . . . . 2 . . . 1 2 Low Security (%) 82 | 100 91 100 . 100 100 82 100 100 . . 100 . . . . 75 . . . . 72 . . 100 23 40 Level 1 14 | . 8 . . . . 17 . . . . . . . . . 24 . . . . 16 . . . 76 44 Level 2 2 | . . . . . . . . . . . . . . . . . . . . . 10 . . . . 14 Level 3 . | . . . . . . . . . . . . . . . . . . . . . . . . . . . Level 4 . | . . . . . . . . . . . . . . . . . . . . . . . . . . . Level 5 . | . . . . . . . . . . . . . . . . . . . . . . . . . . . High Security . | . . . . . . . . . . . . . . . . . . . . . . . . . . . Max Security . | . . . . . . . . . . . . . . . . . . . . . . . . . . . Squads Dispatched 24 | . 2 . . . 2 . . 2 . . . . . . . 3 . . . . 4 . . 1 1 9 Investigation 4 | . . . . . . . . . . . . . . . . 2 . . . . 2 . . . . . Extermination 7 | . . . . . . . . 2 . . . . . . . . . . . . 1 . . 1 1 2 Reinforcement 4 | . 2 . . . . . . . . . . . . . . 1 . . . . . . . . . 1 Assault . | . . . . . . . . . . . . . . . . . . . . . . . . . . . Garrison 5 | . . . . . 2 . . . . . . . . . . . . . . . . . . . . 3 Intercept 4 | . . . . . . . . . . . . . . . . . . . . . 1 . . . . 3 Construction Impeded . | . . . . . . . . . . . . . . . . . . . . . . . . . . . Haulers Reinforced 1 | . . . . . . . . . . . . . . . . 1 . . . . . . . . . . Stealth | -11 -10 -10 -10 -9 -8 -8 -8 -7 -7 -7 -6 -6 -6 -6 -5 -5 -5 -5 -5 -4 -4 -4 -4 -3 -2 -1 --------- Run | Scr Mat Min Exi Min Mat Gar Mat Fac Low Low Fac Low Low Dat Pro Fac Upp Upp Zhi Pro Fac Upp Upp Res Res Acc Distress Signals 4 | . . . . 1 . . . 1 . . . . . . . . . . . . 1 . . . . 1 Communications Jammed 19 | . . . . . . . 6 . . . 1 . . . . 4 . . . . 5 . . 1 . 2 Distress Signals 18 | . . . . . . . 6 . . . 1 . . . . 4 . . . . 5 . . . . 2 Times Spotted 152 | . 14 2 . . 6 6 6 10 2 1 6 4 7 4 4 15 3 5 . 7 13 1 2 3 7 24 Peak Tracking Total 9 | . 3 2 . . 2 3 2 2 1 1 2 2 4 4 2 3 3 3 . 4 3 1 2 2 2 9 Tactical Retreats 7 | . . . . . . 1 . . . . 1 . . . . . . 1 . 1 . . . 1 . 2 Traps | -11 -10 -10 -10 -9 -8 -8 -8 -7 -7 -7 -6 -6 -6 -6 -5 -5 -5 -5 -5 -4 -4 -4 -4 -3 -2 -1 ------- Run | Scr Mat Min Exi Min Mat Gar Mat Fac Low Low Fac Low Low Dat Pro Fac Upp Upp Zhi Pro Fac Upp Upp Res Res Acc Traps Triggered 7 | . . . . . . . . 1 1 . 2 . . . . 2 . . . . . . . 1 . . Indirectly 1 | . . . . . . . . . 1 . . . . . . . . . . . . . . . . . Trap Hack Attempts . | . . . . . . . . . . . . . . . . . . . . . . . . . . . Triggered . | . . . . . . . . . . . . . . . . . . . . . . . . . . . Disarmed . | . . . . . . . . . . . . . . . . . . . . . . . . . . . Reprogrammed . | . . . . . . . . . . . . . . . . . . . . . . . . . . . Reused . | . . . . . . . . . . . . . . . . . . . . . . . . . . . Traps Extracted . | . . . . . . . . . . . . . . . . . . . . . . . . . . . Installed . | . . . . . . . . . . . . . . . . . . . . . . . . . . . Triggered 11 | . . . . . . . . . 9 . . 1 . . . . . 1 . . . . . . . . Machines | -11 -10 -10 -10 -9 -8 -8 -8 -7 -7 -7 -6 -6 -6 -6 -5 -5 -5 -5 -5 -4 -4 -4 -4 -3 -2 -1 ---------- Run | Scr Mat Min Exi Min Mat Gar Mat Fac Low Low Fac Low Low Dat Pro Fac Upp Upp Zhi Pro Fac Upp Upp Res Res Acc Machines Disabled 10 | . . . . . . . . . . . . 1 . . . 1 . . . . 4 . . . . 4 Max in Single Turn 2 | . . . . . . . . . . . . 1 . . . 1 . . . . 2 . . . . 2 Garrison Access 5 | . . . . . . . . . . . 1 . . . . 1 . . . . 1 . . . 1 1 Machines Sabotaged . | . . . . . . . . . . . . . . . . . . . . . . . . . . . Garrisons Compromised . | . . . . . . . . . . . . . . . . . . . . . . . . . . . Overloaded Fab Kills . | . . . . . . . . . . . . . . . . . . . . . . . . . . . Fab Network Shutdowns . | . . . . . . . . . . . . . . . . . . . . . . . . . . . Hacking | -11 -10 -10 -10 -9 -8 -8 -8 -7 -7 -7 -6 -6 -6 -6 -5 -5 -5 -5 -5 -4 -4 -4 -4 -3 -2 -1 --------- Run | Scr Mat Min Exi Min Mat Gar Mat Fac Low Low Fac Low Low Dat Pro Fac Upp Upp Zhi Pro Fac Upp Upp Res Res Acc Machines Accessed 53 | . 5 . 1 . 4 . 7 7 . . 4 . . 2 . 7 . . 4 . 7 1 . 1 2 1 Terminals 27 | . 4 . . . 2 . 5 4 . . 2 . . . . 5 . . . . 3 . . 1 1 . Fabricators 4 | . . . . . . . . 1 . . 1 . . . . . . . . . 2 . . . . . Repair Stations 2 | . . . . . . . . . . . . . . . . 1 . . . . 1 . . . . . Recycling Units 5 | . 1 . . . 1 . 1 2 . . . . . . . . . . . . . . . . . . Scanalyzers 1 | . . . . . . . 1 . . . . . . . . . . . . . . . . . . . Garrison Access 6 | . . . . . 1 . . . . . 1 . . . . 1 . . . . 1 . . . 1 1 Total Hacks 160 | . 23 . 1 . 9 . 21 19 . . 11 . . 17 . 17 . . 13 . 20 1 . 4 3 1 Successful 100 | . 16 . 1 . 5 . 10 8 . . 8 . . 17 . 6 . . 13 . 10 1 . 2 2 1 Failed 60 | . 7 . . . 4 . 11 11 . . 3 . . . . 11 . . . . 10 . . 2 1 . Catastrophic 5 | . . . . . . . 1 2 . . . . . . . 2 . . . . . . . . . . Database Lockouts . | . . . . . . . . . . . . . . . . . . . . . . . . . . . Manual 86 | . 21 . 1 . 6 . 17 18 . . 9 . . . . 5 . . . . 8 . . 1 . . Terminals 91 | . 21 . . . 5 . 17 14 . . 9 . . . . 13 . . . . 6 . . 4 2 . Fabricators 12 | . . . . . . . . 1 . . 1 . . . . . . . . . 10 . . . . . Repair Stations 6 | . . . . . . . . . . . . . . . . 3 . . . . 3 . . . . . Recycling Units 11 | . 2 . . . 3 . 2 4 . . . . . . . . . . . . . . . . . . Scanalyzers 2 | . . . . . . . 2 . . . . . . . . . . . . . . . . . . . Garrison Access 6 | . . . . . 1 . . . . . 1 . . . . 1 . . . . 1 . . . 1 1 Terminal Hacks 55 | . 8 . 1 . 1 . 6 2 . . 3 . . 17 . 1 . . 13 . . 1 . 1 1 . Record 6 | . . . . . . . . . . . . . . . . . . . 5 . . . . 1 . . Part Schematic 16 | . 1 . . . . . 1 . . . 1 . . 9 . . . . 4 . . . . . . . Robot Schematic 5 | . . . . . . . . . . . . . . 5 . . . . . . . . . . . . Robot Analysis 6 | . 4 . . . . . 2 . . . . . . . . . . . . . . . . . . . Prototype ID Bank 8 | . . . . . . . 1 . . . . . . 3 . . . . 4 . . . . . . . Open Door 1 | . . . . . . . . . . . . . . . . . . . . . . 1 . . . . Level Access Points 2 | . . . . . . . 1 . . . . . . . . . . . . . . . . . 1 . Branch Access Points 3 | . . . . . . . . 1 . . 1 . . . . 1 . . . . . . . . . . Terminal Index 5 | . 1 . . . 1 . 1 1 . . 1 . . . . . . . . . . . . . . . Locate Traps 2 | . 2 . . . . . . . . . . . . . . . . . . . . . . . . . EX-Prototype ID Bank 1 | . . . 1 . . . . . . . . . . . . . . . . . . . . . . . Fabricator Hacks 3 | . . . . . . . . . . . . . . . . . . . . . 3 . . . . . Load Schematic 2 | . . . . . . . . . . . . . . . . . . . . . 2 . . . . . Build 1 | . . . . . . . . . . . . . . . . . . . . . 1 . . . . . Repair Station Hacks 3 | . . . . . . . . . . . . . . . . 1 . . . . 2 . . . . . Scan Component 2 | . . . . . . . . . . . . . . . . 1 . . . . 1 . . . . . Repair 1 | . . . . . . . . . . . . . . . . . . . . . 1 . . . . . Recycling Unit Hacks . | . . . . . . . . . . . . . . . . . . . . . . . . . . . Scanalyzer 1 | . . . . . . . 1 . . . . . . . . . . . . . . . . . . . Insert Component 1 | . . . . . . . 1 . . . . . . . . . . . . . . . . . . . Garrison Access Hacks 6 | . . . . . 1 . . . . . 1 . . . . 1 . . . . 1 . . . 1 1 Unlock Access 1 | . . . . . 1 . . . . . . . . . . . . . . . . . . . . . Seal Access 5 | . . . . . . . . . . . 1 . . . . 1 . . . . 1 . . . 1 1 Unauthorized Hacks 32 | . 8 . . . 3 . 3 6 . . 4 . . . . 3 . . . . 4 . . 1 . . Terminals 23 | . 6 . . . 1 . 3 3 . . 3 . . . . 3 . . . . 3 . . 1 . . Track 4 | . 4 . . . . . . . . . . . . . . . . . . . . . . . . . Botnet 14 | . 2 . . . 1 . 2 2 . . 2 . . . . 2 . . . . 2 . . 1 . . Operators 5 | . . . . . . . 1 1 . . 1 . . . . 1 . . . . 1 . . . . . Fabricators 3 | . . . . . . . . 1 . . 1 . . . . . . . . . 1 . . . . . Prioritize 1 | . . . . . . . . . . . . . . . . . . . . . 1 . . . . . Haulers 2 | . . . . . . . . 1 . . 1 . . . . . . . . . . . . . . . Repair Stations . | . . . . . . . . . . . . . . . . . . . . . . . . . . . Recycling Units 6 | . 2 . . . 2 . . 2 . . . . . . . . . . . . . . . . . . Reject 3 | . 1 . . . 1 . . 1 . . . . . . . . . . . . . . . . . . Recyclers 3 | . 1 . . . 1 . . 1 . . . . . . . . . . . . . . . . . . Scanalyzers . | . . . . . . . . . . . . . . . . . . . . . . . . . . . Garrison Access . | . . . . . . . . . . . . . . . . . . . . . . . . . . . Data Cores Recovered . | . . . . . . . . . . . . . . . . . . . . . . . . . . . Used . | . . . . . . . . . . . . . . . . . . . . . . . . . . . Hacking Detections 35 | . 4 . . . 2 . 7 6 . . 2 . . . . 6 . . . . 6 . . 1 1 . Full Trace Events 4 | . . . . . . . . . . . . . . . . 2 . . . . 2 . . . . . Feedback Events 1 | . . . . . . . . . . . . . . . . 1 . . . . . . . . . . Corruption 1 | . . . . . . . . . . . . . . . . 1 . . . . . . . . . . Feedback Blocked . | . . . . . . . . . . . . . . . . . . . . . . . . . . . Robot Schematics Acquired 5 | . . . . . . . . . . . . . . 5 . . . . . . . . . . . . Robots Built . | . . . . . . . . . . . . . . . . . . . . . . . . . . . Matter . | . . . . . . . . . . . . . . . . . . . . . . . . . . . Time . | . . . . . . . . . . . . . . . . . . . . . . . . . . . Total Robot Build Rating . | . . . . . . . . . . . . . . . . . . . . . . . . . . . Part Schematics Acquired 16 | . 1 . . . . . 1 . . . 1 . . 9 . . . . 4 . . . . . . . Parts Built 1 | . . . . . . . . . . . . . . . . . . . . . 1 . . . . . Matter 285 | . . . . . . . . . . . . . . . . . . . . . 285 . . . . . Time 76 | . . . . . . . . . . . . . . . . . . . . . 76 . . . . . Total Part Build Rating 5 | . . . . . . . . . . . . . . . . . . . . . 5 . . . . . Parts Repaired 1 | . . . . . . . . . . . . . . . . . . . . . 1 . . . . . Time 56 | . . . . . . . . . . . . . . . . . . . . . 56 . . . . . Parts Recycled . | . . . . . . . . . . . . . . . . . . . . . . . . . . . Recycled Matter . | . . . . . . . . . . . . . . . . . . . . . . . . . . . Retrieved Matter . | . . . . . . . . . . . . . . . . . . . . . . . . . . . Retrieved Components . | . . . . . . . . . . . . . . . . . . . . . . . . . . . Parts Scanalyzed 1 | . . . . . . . 1 . . . . . . . . . . . . . . . . . . . Part Schematics Acquired . | . . . . . . . . . . . . . . . . . . . . . . . . . . . Parts Damaged . | . . . . . . . . . . . . . . . . . . . . . . . . . . . Bothacking | -11 -10 -10 -10 -9 -8 -8 -8 -7 -7 -7 -6 -6 -6 -6 -5 -5 -5 -5 -5 -4 -4 -4 -4 -3 -2 -1 ------------ Run | Scr Mat Min Exi Min Mat Gar Mat Fac Low Low Fac Low Low Dat Pro Fac Upp Upp Zhi Pro Fac Upp Upp Res Res Acc Used RIF Installer 1 | . . . . . . 1 . . . . . . . . . . . . . . . . . . . . Robots Hacked . | . . . . . . . . . . . . . . . . . . . . . . . . . . . Non-combat . | . . . . . . . . . . . . . . . . . . . . . . . . . . . Combat . | . . . . . . . . . . . . . . . . . . . . . . . . . . . Robot Hacks Applied . | . . . . . . . . . . . . . . . . . . . . . . . . . . . Relay Couplers Released . | . . . . . . . . . . . . . . . . . . . . . . . . . . . Robots Rewired . | . . . . . . . . . . . . . . . . . . . . . . . . . . . Allies Hacked . | . . . . . . . . . . . . . . . . . . . . . . . . . . . Hacks Repelled . | . . . . . . . . . . . . . . . . . . . . . . . . . . . Allies | -11 -10 -10 -10 -9 -8 -8 -8 -7 -7 -7 -6 -6 -6 -6 -5 -5 -5 -5 -5 -4 -4 -4 -4 -3 -2 -1 -------- Run | Scr Mat Min Exi Min Mat Gar Mat Fac Low Low Fac Low Low Dat Pro Fac Upp Upp Zhi Pro Fac Upp Upp Res Res Acc Total Allies 3 | . . . . 3 . . . . . . . . . . . . . . . . . . . . . . Largest Group 3 | . . . . 3 3 . . . . . . . . . . . . . . . . . . . . . Highest-Rated Group 40 | . . . . 40 40 . . . . . . . . . . . . . . . . . . . . . Highest-Rated Ally 16 | . . . . 16 16 . . . . . . . . . . . . . . . . . . . . . Total Orders 5 | . . . . . . . . 4 . . 1 . . . . . . . . . . . . . . . EXPLORE 4 | . . . . . . . . 3 . . 1 . . . . . . . . . . . . . . . RETURN 1 | . . . . . . . . 1 . . . . . . . . . . . . . . . . . . Ally Attacks 24 | . . . . . 24 . . . . . . . . . . . . . . . . . . . . . Total Damage 308 | . . . . . 308 . . . . . . . . . . . . . . . . . . . . . Kills 3 | . . . . . 3 . . . . . . . . . . . . . . . . . . . . . Allies Corrupted . | . . . . . . . . . . . . . . . . . . . . . . . . . . . Allies Melted . | . . . . . . . . . . . . . . . . . . . . . . . . . . . Intel | -11 -10 -10 -10 -9 -8 -8 -8 -7 -7 -7 -6 -6 -6 -6 -5 -5 -5 -5 -5 -4 -4 -4 -4 -3 -2 -1 ------- Run | Scr Mat Min Exi Min Mat Gar Mat Fac Low Low Fac Low Low Dat Pro Fac Upp Upp Zhi Pro Fac Upp Upp Res Res Acc Robot Analysis Total 121 | . 4 . . . . . 2 . . . . . . 115 . . . . . . . . . . . . Derelict Logs Recovered 8 | . . 1 . 1 . . . . . 1 . 1 1 . . . . . . 2 . 1 . . . . Drone Launches 4 | . . . . . . . . 3 . . 1 . . . . . . . . . . . . . . . Drone Recoveries 3 | . . . . . . . . 3 . . . . . . . . . . . . . . . . . . Exploration | -11 -10 -10 -10 -9 -8 -8 -8 -7 -7 -7 -6 -6 -6 -6 -5 -5 -5 -5 -5 -4 -4 -4 -4 -3 -2 -1 ------------- Run | Scr Mat Min Exi Min Mat Gar Mat Fac Low Low Fac Low Low Dat Pro Fac Upp Upp Zhi Pro Fac Upp Upp Res Res Acc Turns Passed 14985 | 76 703 293 468 430 553 387 760 1262 773 370 805 445 819 218 448 927 406 698 204 725 886 341 123 362 484 1019 Spaces Moved 7913 | 31 335 152 292 259 273 188 401 691 456 209 460 265 463 116 254 458 222 390 121 400 405 194 73 164 220 421 Core 12 | 12 . . . . . . . . . . . . . . . . . . . . . . . . . . Treads 7901 | 19 335 152 292 259 273 188 401 691 456 209 460 265 463 116 254 458 222 390 121 400 405 194 73 164 220 421 Legs . | . . . . . . . . . . . . . . . . . . . . . . . . . . . Wheels . | . . . . . . . . . . . . . . . . . . . . . . . . . . . Hover . | . . . . . . . . . . . . . . . . . . . . . . . . . . . Flight . | . . . . . . . . . . . . . . . . . . . . . . . . . . . Fastest Speed 50 | 50 160 160 160 160 160 160 145 145 153 153 151 151 151 151 151 155 162 162 162 162 162 162 162 160 160 152 Average Speed 156 | 117 160 160 160 160 160 160 150 147 153 156 151 151 151 151 153 158 162 162 162 162 162 162 162 170 160 155 Slowest Speed 185 | 160 160 160 160 160 160 160 160 153 153 173 155 155 151 151 171 178 162 162 162 182 162 162 162 185 180 165 Overloaded Moves . | . . . . . . . . . . . . . . . . . . . . . . . . . . . Propulsion Burnouts . | . . . . . . . . . . . . . . . . . . . . . . . . . . . Robots Hopped . | . . . . . . . . . . . . . . . . . . . . . . . . . . . Cave-ins Triggered . | . . . . . . . . . . . . . . . . . . . . . . . . . . . Exploration Rate (%) 39 | 2 60 49 70 63 23 37 34 28 65 29 21 49 63 82 58 15 45 52 61 63 14 43 11 7 6 18 Regions Visited 26 Branch Regions 15 Pre-discovered Areas 34 | . . . . . . . . . . 1 . . . 28 . . . . 3 1 . 1 . . . . Known Exits Taken 14 | . . . . . 1 . 1 1 . . 1 . . . . 1 1 1 1 1 1 1 1 1 1 . Unknown Exits Taken 11 | 1 1 1 1 1 . . . . 1 1 . 1 1 1 1 . . . . . . . . . . . Scrap Searched 12 | . . 1 . 1 . . . . . 2 . 1 3 . . . . . . 1 . 1 2 . . . Spaces Dug 104 | . 8 . . . 2 . 8 11 4 1 7 2 3 . 2 13 5 2 . 5 10 2 . 3 1 15 Terrain Destroyed 240 | . 8 . . . 2 . 11 11 4 1 23 2 3 32 2 21 7 8 . 6 55 3 . 5 7 29 Melee 46 | . . . . . . . 3 11 4 1 7 2 3 . 2 13 . . . . . . . . . . Projectile 93 | . 8 . . . 2 . 5 . . . . . . . . 5 7 3 . 6 13 3 . 5 7 29 AOE 101 | . . . . . . . 3 . . . 16 . . 32 . 3 . 5 . . 42 . . . . . Terrain Rammed . | . . . . . . . . . . . . . . . . . . . . . . . . . . . Walls Destroyed . | . . . . . . . . . . . . . . . . . . . . . . . . . . . Machines Disabled . | . . . . . . . . . . . . . . . . . . . . . . . . . . . Actions | -11 -10 -10 -10 -9 -8 -8 -8 -7 -7 -7 -6 -6 -6 -6 -5 -5 -5 -5 -5 -4 -4 -4 -4 -3 -2 -1 --------- Run | Scr Mat Min Exi Min Mat Gar Mat Fac Low Low Fac Low Low Dat Pro Fac Upp Upp Zhi Pro Fac Upp Upp Res Res Acc Total 9374 | 52 409 175 293 265 341 235 514 828 496 231 530 288 542 147 283 555 241 423 131 442 538 210 77 218 299 611 Wait 167 | . . 3 . . . 3 18 9 8 1 2 6 50 3 . . . 8 . . 12 3 . 4 18 19 Move 7885 | 30 334 151 291 258 272 186 400 690 455 208 459 264 462 115 253 457 221 389 120 399 404 193 72 163 219 420 Hop . | . . . . . . . . . . . . . . . . . . . . . . . . . . . Pick Up 171 | 6 9 . 1 1 14 3 14 12 . 3 16 . 2 7 3 10 1 1 2 5 18 1 1 11 13 17 Fast Attach 51 | 5 3 . . . 7 2 6 3 2 . 1 1 . 1 . 3 . . 2 1 1 1 . 3 1 8 Attach 95 | 2 1 . . . 7 1 7 7 1 . 5 1 2 1 5 11 1 2 2 1 4 . 1 10 5 18 Detach 22 | . 1 . . . 4 . 2 2 . . . . . . . 4 . . 3 1 . 1 . . 2 2 Swap 329 | . 8 6 . 1 5 13 18 38 11 11 17 8 8 7 12 23 5 9 . 12 47 6 2 8 11 43 Drop 149 | . 8 1 1 . 10 7 26 16 1 . 12 . . 8 . 3 . 1 2 3 14 1 1 8 8 18 Fire 435 | 9 44 14 . 5 22 20 19 37 13 3 10 6 15 5 7 27 13 13 . 20 35 4 . 11 18 65 Melee 58 | . . . . . . . 3 12 5 5 8 2 3 . 3 17 . . . . . . . . . . Ram . | . . . . . . . . . . . . . . . . . . . . . . . . . . . Kick . | . . . . . . . . . . . . . . . . . . . . . . . . . . . Crush 12 | . 1 . . . . . 1 2 . . . . . . . . . . . . 3 . . . 4 1 Escape Stasis . | . . . . . . . . . . . . . . . . . . . . . . . . . . . Rewire . | . . . . . . . . . . . . . . . . . . . . . . . . . . . Trap . | . . . . . . . . . . . . . . . . . . . . . . . . . . . Miscellaneous . | . . . . . . . . . . . . . . . . . . . . . . . . . . . Route ------- -11/Scrapyard -10/Materials (discovered 3 exits: [*Mat x2] / [*Min]) -10/Mines (discovered 2 exits: [*Mat] / *Exi) -10/Exiles -9/Mines -8/Materials (discovered 2 exits: *Fac / Gar) -8/Garrison -8/Materials (discovered 3 exits: *Fac x3) -7/Factory (discovered 3 exits: *Fac / *Low x2) -7/Lower Caves -7/Lower Caves -6/Factory (discovered 2 exits: *Low x2) -6/Lower Caves -6/Lower Caves (discovered 2 exits: *Fac / *Dat) -6/Data Miner -5/Proximity Caves -5/Factory (discovered 4 exits: *Upp x2 / Ext x2) -5/Upper Caves -5/Upper Caves (discovered 2 exits: Fac / *Zhi) -5/Zhirov -4/Proximity Caves -4/Factory -4/Upper Caves -4/Upper Caves -3/Research -2/Research (discovered 3 exits: *Acc x3) -1/Access To Epsilon Eridani History --------- Turn | Location | Event 14 | -11/Scrapyard | Discovered new exit (range 15) 77 | -11/Scrapyard | Entered Materials 330 | -10/Materials | Build established: Mutant 355 | -10/Materials | Discovered new exit (range 8) 483 | -10/Materials | Discovered new exit (range 15) 556 | -10/Materials | Discovered new exit (range 13) 780 | -10/Materials | Entered Mines 972 | -10/Mines | Learned Materials trap positions 1044 | -10/Mines | Discovered new exit (range 9) 1067 | -10/Mines | Deemed a non-threat by the Exiles lab entrance 1067 | -10/Mines | Discovered new exit (range 5) 1073 | -10/Mines | Entered Exiles 1110 | -10/Exiles | Met 8R-AWN 1141 | -10/Exiles | Met EX-HEX 1211 | -10/Exiles | Met EX-DEC 1323 | -10/Exiles | Met EX-BIN 1345 | -10/Exiles | Aligned with FarCom system 1347 | -10/Exiles | Given EX-Vault access code 1384 | -10/Exiles | Opened EX-Vault 1392 | -10/Exiles | Found Supersonic Drone Bay 1424 | -10/Exiles | Warned to stay clear of 0b10 Research branches 1528 | -10/Exiles | Discovered new exit (range 10) 1541 | -10/Exiles | Left Exiles lab with Supersonic Drone Bay 1541 | -10/Exiles | Entered Mines 1618 | -9/Mines | Assembled infested the area 1623 | -9/Mines | Assisted by a Guerilla fighting off Assembled 1628 | -9/Mines | Assisted by bots powering up and referring to "LRC-V3" 1829 | -9/Mines | Build established: Skirmisher 1834 | -9/Mines | Learned Materials emergency access door positions 1842 | -9/Mines | Discovered new exit (range 11) 1859 | -9/Mines | Received a Rocket Launcher from a helpful Derelict 1971 | -9/Mines | Entered Materials 1971 | -8/Materials | Accompanied by 3 allies 1971 | -8/Materials | Evolved 4 slots: Propulsion x1, Utility x2, Weapon x1 1972 | -8/Materials | Loaded intel: 18 trap records 2360 | -8/Materials | Garrison activated, responded to threat 2417 | -8/Materials | Discovered new exit (range 3) 2516 | -8/Materials | Identified exit to Garrison 2524 | -8/Materials | Entered Garrison 2532 | -8/Garrison | Installed Relay Interface Framework 2595 | -8/Garrison | Triggered checkpoint 2816 | -8/Garrison | Discovered new exit (range 12) 2836 | -8/Garrison | Triggered checkpoint 2911 | -8/Garrison | Entered Materials 3030 | -8/Materials | Build established: Scavenger-Skirmisher 3447 | -8/Materials | Identified exit to Factory 3671 | -8/Materials | Entered Factory 3671 | -7/Factory | Evolved 2 slots: Utility x2 4651 | -7/Factory | Identified exit to Lower Caves 4814 | -7/Factory | Discovered new exit (range 15) 4933 | -7/Factory | Entered Lower Caves 5106 | -7/Lower Caves | Found Alien Artifact 5106 | -7/Lower Caves | Identified Core Expander 5106 | -7/Lower Caves | Installed Core Expander, added new Weapon slot 5265 | -7/Lower Caves | Build established: Assassin 5617 | -7/Lower Caves | Discovered new exit (range 14) 5706 | -7/Lower Caves | Entered another Lower Caves area 5716 | -7/Lower Caves | Discovered new exit (range 16) 5884 | -7/Lower Caves | Learned location of Zion (-7) 6022 | -7/Lower Caves | Encountered a Warlord checkpoint 6076 | -7/Lower Caves | Entered Factory 6076 | -6/Factory | Evolved 2 slots: Propulsion x1, Utility x1 6257 | -6/Factory | Identified exit to Lower Caves 6688 | -6/Factory | Build established: Hauler-Assassin 6881 | -6/Factory | Entered Lower Caves 6885 | -6/Lower Caves | Learned 12 Factory zone layouts 6984 | -6/Lower Caves | Med. Treads stolen by Master Thief 7267 | -6/Lower Caves | Build established: Hauler-Skirmisher 7309 | -6/Lower Caves | Discovered new exit (range 12) 7326 | -6/Lower Caves | Entered another Lower Caves area 7405 | -6/Lower Caves | Learned Factory machine intel 7406 | -6/Lower Caves | Discovered new exit (range 5) 7573 | -6/Lower Caves | Build established: Hauler-Assassin 8011 | -6/Lower Caves | Discovered new exit (range 13) 8145 | -6/Lower Caves | Entered Data Miner 8145 | -6/Data Miner | Discovered new exit (range 6) 8165 | -6/Data Miner | Met Data Miner 8234 | -6/Data Miner | Received God Mode back door access code from Data Miner 8251 | -6/Data Miner | Interfaced with the Data Conduit 8363 | -6/Data Miner | Entered Proximity Caves 8591 | -5/Proximity Caves | Lost 4 parts (1n2u1w) 8795 | -5/Proximity Caves | Discovered new exit (range 10) 8811 | -5/Proximity Caves | Entered Factory 8811 | -5/Factory | Evolved 2 slots: Utility x1, Weapon x1 8813 | -5/Factory | Loaded intel: 233 machine locations 8950 | -5/Factory | Identified exit to Upper Caves 8950 | -5/Factory | Identified exit to Extension 9348 | -5/Factory | Lost 5 parts (3n1u1w) 9738 | -5/Factory | Entered Upper Caves 9831 | -5/Upper Caves | Encountered a Warlord checkpoint 10101 | -5/Upper Caves | Discovered new exit (range 15) 10143 | -5/Upper Caves | Identified exit to Upper Caves 10144 | -5/Upper Caves | Entered another Upper Caves area 10216 | -5/Upper Caves | Discovered new exit (range 15) 10552 | -5/Upper Caves | Build established: Hauler-Skirmisher 10796 | -5/Upper Caves | Discovered new exit (range 17) 10840 | -5/Upper Caves | Identified exit to Zhirov 10842 | -5/Upper Caves | Entered Zhirov 10842 | -5/Zhirov | Discovered new exit (range 3) 10873 | -5/Zhirov | Met Zhirov 10908 | -5/Zhirov | Found Alien Artifact 10908 | -5/Zhirov | Identified Integrated Reactor 10908 | -5/Zhirov | Installed Integrated Reactor, increased core energy generation (+10) 11003 | -5/Zhirov | Zhirov requested help retrieving the SGEMP Prototype 11045 | -5/Zhirov | Identified exit to Proximity Caves 11046 | -5/Zhirov | Entered Proximity Caves 11066 | -4/Proximity Caves | Build established: Hauler-Mutant 11372 | -4/Proximity Caves | Learned Research terminal intel 11577 | -4/Proximity Caves | Spotted B-86 Titan 11722 | -4/Proximity Caves | Discovered new exit (range 13) 11769 | -4/Proximity Caves | Identified exit to Factory 11771 | -4/Proximity Caves | Entered Factory 11771 | -4/Factory | Evolved 2 slots: Utility x2 11772 | -4/Factory | Loaded intel: 244 machine locations 11989 | -4/Factory | Repaired Adv. Salvage Targeting Computer 12309 | -4/Factory | Discovered new exit (range 18) 12369 | -4/Factory | Identified exit to Upper Caves 12588 | -4/Factory | Fabricated Exp. Terrain Scanner (x1) 12641 | -4/Factory | Intercept squad dispatched 12657 | -4/Factory | Entered Upper Caves 12662 | -4/Upper Caves | Encountered a Warlord checkpoint 12789 | -4/Upper Caves | Spotted B-86 Titan 12938 | -4/Upper Caves | Discovered new exit (range 24) 12972 | -4/Upper Caves | Identified exit to Upper Caves 12998 | -4/Upper Caves | Entered another Upper Caves area 13111 | -4/Upper Caves | Discovered new exit (range 7) 13119 | -4/Upper Caves | Identified exit to Research 13121 | -4/Upper Caves | Entered Research 13121 | -3/Research | Evolved 2 slots: Utility x1, Weapon x1 13122 | -3/Research | Loaded intel: 116 machine locations 13123 | -3/Research | Loaded intel: 19 terminal locations 13165 | -3/Research | Build established: Scavenger-Mutant 13286 | -3/Research | Discovered new exit (range 7) 13306 | -3/Research | Identified exit to Research 13342 | -3/Research | Spotted B-86 Titan 13396 | -3/Research | Destroyed B-86 Titan 13425 | -3/Research | Lost 8 parts (1p2n5w) 13483 | -3/Research | Entered another Research area 13483 | -2/Research | Evolved 2 slots: Utility x2 13484 | -2/Research | Loaded intel: 115 machine locations 13533 | -2/Research | Identified exit to Access 13574 | -2/Research | Build established: Scavenger-Executioner 13967 | -2/Research | Entered Access 13967 | -1/Access | Evolved 2 slots: Utility x1, Weapon x1 13968 | -1/Access | Loaded intel: 111 machine locations 14271 | -1/Access | Build established: Scavenger-Mutant 14365 | -1/Access | Garrison activated, responded to threat 14499 | -1/Access | Destroyed 7 combat bots 14508 | -1/Access | Lost 7 parts (2u5w) 14576 | -1/Access | Intercept squad dispatched 14582 | -1/Access | Spotted Tracker 14582 | -1/Access | Spotted Tracker 14587 | -1/Access | Destroyed Tracker 14607 | -1/Access | Spotted Combat Programmer 14616 | -1/Access | Destroyed Combat Programmer 14637 | -1/Access | Found Exp. Targeting Computer 14681 | -1/Access | Spotted Combat Programmer 14699 | -1/Access | Destroyed Combat Programmer 14709 | -1/Access | Spotted B-99 Colossus 14732 | -1/Access | Destroyed B-99 Colossus 14755 | -1/Access | Found Prototype Ballistic Gun 14755 | -1/Access | Identified Multirail 14758 | -1/Access | Found Multirail 14853 | -1/Access | Spotted B-99 Colossus 14876 | -1/Access | Destroyed B-99 Colossus 14904 | -1/Access | Spotted B-99 Colossus 14915 | -1/Access | Found Multirail 14921 | -1/Access | Found Multirail 14936 | -1/Access | Destroyed B-99 Colossus 14953 | -1/Access | Found Multirail 14976 | -1/Access | Discovered new exit (range 5) 14986 | *** | Escaped! Last Messages --------------- 14932_ B-99 Colossus suffers critical hit. 14934_ Penetrated by Slug. 14934_ Slug penetrates Reinforced Barrier. 14934_ Penetrated by Slug. 14934_ Slug penetrates Reinforced Barrier. 14936_ Slug penetrates B-99 Colossus. 14936_ B-99 Colossus suffers critical hit. 14936_ Destroyed Multirail. 14936_ Slug penetrates B-99 Colossus. 14936_ Slug penetrates Reinforced Barrier. 14936_ Slug penetrates B-99 Colossus. 14936_ B-99 Colossus destroyed. 14940_ Dropped Imp. Utility Shielding. 14941_ Acquired 200 matter. 14942_ ALERT: Rogue bot located, Programmers report to Access Zone 9Y. 14945_ Ended siege mode. 14953_ Acquired Multirail. 14976_ Main Access Shell breached. 14976_ EXIT=FOUND 14977_ System corrupted: Energy discharge (-102). Map ----- +----------------------------------------------------+ | """"" # # "" ### ?##?##???"??????????? | | # # "" ? ### ###?#??????????????? | | # # """""" ?""### ?#### ?????????????? | | ###++#### # """""" ""?# ######?#?#????????? | | ### ! # "" Y"## T"? ? ? ?????????? | | ### # "" ? ""##?"" ???????????? | | ### + ""## #####?#? ?????????? | | ###!!!= # ######?###### ?##?#???? ? | | ###!!!]!] # ############? ?#????? ? ? | | ###!! = ! ####################?###### ????? ??? | | ! !!!=%!![ #######################?## ?##??#? #?? | | #####!!#* ? ? ??###? ??? | | #####[=# o ? ##???? ??? | | ######## ######### ""##?##+###?##?? ?# | | #####+########### ""### ##? ? | | # ####### ""### ??? ?? ?? | | # ####### ? ?T#?# ? ## #? | | # ####### ""### ? ###?#??# | | # // ####### ""### ? ? | | # // ####### ""### ?" # ? ? | | # // ####?#""""""""""""## """ ?# ? ?? | | # ####### ### """ # ? ?? | | # ####### ### " ? ????? | | ########+######## """""" ############? ? ? | | ######## ######## " " ########?### "? ? | | ######## ######## " @" " ##########?# """ ? | | ####?### ######## " "" " ###########?? ?""" | | ######## #####?## " " ############ " | | ######## ######## """"" ############ ? ? | | ######## ######## #########?## ?? | | ####?### ########" """"""""##########?# " ? | | ############p########" """"""""############ ?""" | | ############/########" """"""""########??##? """ | | ######## // #####" """"""""###?######## ?" | | ######## // #####!!]!!*!=! #######?#### | | ######## ##### !=*!! ]!]#?##?#?##### ? ? | | #?###### #?###*!!!=!!! ###########??###### | | ###? # | p #####!*!]!!!!! ###########?###?### | | #?# # | #####!!= = ###?############### | | ### ? # ##?## ######?##?######### | | + ? + [ ##### ###?#######?##??##? | | # # ###?##"" ######?########?#??### | | # ?########+######"# ##############?###??#? | | ?# ##[ !]!# #?##??############?### | | # ## !!# ###?#####?##??#####?## | | +? ## ]# ######?#######?##?##?? | | #? ##! # ##?##?########??####?# | | # ## # ##########?########?#? | | # ## # ##?###########?###?#?# | | ?# ## # #################??##? | +----------------------------------------------------+ Best States ------------- Heat Dissipation 140 Energy Generation 35 Energy Capacity 350 Matter Stores 668 Matter Capacity 800 Sight Range 22 Robot Scan Range 20 Terrain Scan Range 30 Terrain Scan Density 210 Jamming Range 12 EM Shielding 3 Armor Coverage 900 Resistance: TH 10 Propulsion Shielding 33 Utility Shielding 66 Evasion (%) 50 Targeting Accuracy 12 Target Analysis 8 Armor Integrity Analysis 50 Recoil Reduction 4 Kinecelleration 40 Salvage Targeting 3 Offensive Hacking 14 Defensive Hacking 14 Item Schematics ----------------- Lrg. Storage Unit | -10/Materials | Hacked Imp. Weapon Shielding | -8/Materials | Hacked Weapon Cycler | -6/Factory | Hacked Combat Drone Bay | -6/Data Miner | Free Lgt. Regenerative Plating | -6/Data Miner | Free Exp. Cesium-ion Thruster | -6/Data Miner | Free Exp. Sensor Array | -6/Data Miner | Free Exp. Terrain Scanner | -6/Data Miner | Free Exp. Targeting Computer | -6/Data Miner | Free Exp. ECM Suite | -6/Data Miner | Free Mni. Smartbomb Launcher | -6/Data Miner | Free Plasma Sword | -6/Data Miner | Free Assault Drone Bay | -5/Zhirov | Free Exp. Heat Sink | -5/Zhirov | Free Exp. Optical Array | -5/Zhirov | Free Imp. Arc Thrower | -5/Zhirov | Free Robot Schematics ------------------ S-27 Virus | -6/Data Miner | Free G-50 Soldier | -6/Data Miner | Free L-41 Fighter | -6/Data Miner | Free X-72 Disruptor | -6/Data Miner | Free I-36 Angel | -6/Data Miner | Free Fabricated ------------ Exp. Terrain Scanner | x1 | -4/Factory Alien Tech Used ----------------- Core Expander Integrated Reactor Achievements -------------- None Challenges ------------ None Game ------ Seed AlloyTachyonSpear Manual? 0 Play Time 03:45:31 Cumulative 405.8 hours Start 2021.12.11 @ 13:00:21 End 2021.12.11 @ 21:41:57 Sessions 15 Manual Loads 0 Difficulty Rogue Special Mode None Game No. 199 Rogue 81 Adventurer 116 Explorer 2 Win Type 0 Total 33 Types 30/2/0/0/0/0/0/0/1 Lore% 55 Gallery% 82 Achievement% 60 Wizard Run 0 Options --------- ASCII 0 Keyboard 1 Movement Numpad Keybinds 0 Fullscreen 1 Font 36/TerminusFine Map View 76x50 Tactical HUD 1 Map Filters NONE Filters NONE Steam 1 RUN: d82ebd13-a075-4c2c-91d2-51d53d3dfa36